bitfinex-derivatives/quotes_SOLF0:USTF0_20260129
["timestamp","ask_amount","ask_price","bid_price","bid_amount"]
[1769682565344,2.53071055,123.28,123.25,7.05519314]
[1769682575552,2.53071055,123.28,123.25,14.36859314]
[1769682578855,9.61216222,123.29,123.25,14.36859314]
[1769682579448,2.53071055,123.28,123.25,14.36859314]
[1769682581854,9.61216222,123.29,123.25,14.36859314]
[1769682584351,2.53071055,123.27,123.25,14.36859314]
[1769682584552,2.53071055,123.26,123.24,4.80470362]
[1769682584753,2.53071055,123.26,123.23,6.93035337]
[1769682585448,2.53071055,123.26,123.23,14.24505337]
[1769682589460,7.12844845,123.27,123.23,14.24505337]
[1769682593057,2.53071055,123.26,123.23,14.24505337]
[1769682594560,9.659159,123.27,123.23,14.24505337]
[1769682599969,7.12844845,123.27,123.23,14.24505337]
[1769682600176,9.659159,123.27,123.23,14.24505337]
[1769682600871,9.659159,123.27,123.23,6.93035337]
[1769682601068,2.53071055,123.26,123.22,7.3152]
[1769682601966,2.53071055,123.23,123.19,6.52669466]
[1769682602268,2.53071055,123.22,123.19,6.52669466]
[1769682603266,7.05165771,123.26,123.2,6.52669466]
[1769682603573,9.58236826,123.25,123.2,6.52669466]
[1769682605371,16.89586826,123.25,123.2,6.52669466]
[1769682605568,2.53071055,123.24,123.2,6.52669466]
[1769682607074,2.53071055,123.22,123.18,6.52669466]
[1769682608473,9.58236826,123.22,123.18,6.52669466]
[1769682612277,2.53071055,123.21,123.18,6.52669466]
[1769682612676,2.53071055,123.21,123.16,13.84549466]
[1769682612970,2.53071055,123.21,123.17,6.52669466]
[1769682614477,7.05165771,123.22,123.17,6.52669466]
[1769682621588,7.05165771,123.22,123.18,6.52669466]
[1769682646810,12.70047634,123.24,123.19,7.98387613]
[1769682647006,7.3142,123.24,123.2,7.98387613]
[1769682647207,7.3142,123.24,123.2,5.44996535]
[1769682647908,12.70047634,123.24,123.18,22.90550009]
[1769682648111,7.3147,123.23,123.18,15.30147613]
[1769682648407,7.3147,123.23,123.18,12.76756535]
[1769682648806,5.38627634,123.21,123.16,5.44996535]
[1769682649814,12.70227634,123.21,123.16,5.44996535]
[1769682650120,5.38627634,123.21,123.16,7.98387613]
[1769682651317,5.38627634,123.21,123.16,15.30267613]
[1769682658727,5.38627634,123.21,123.17,7.3182]
[1769682659325,5.38627634,123.21,123.17,9.85211078]
[1769682661620,5.56447011,123.23,123.19,2.53391078]
[1769682661819,5.56447011,123.23,123.17,7.75774672]
[1769682663332,5.56447011,123.23,123.18,7.3176]
[1769682664536,5.56447011,123.23,123.16,7.3186]
[1769682664537,5.56447011,123.21,123.16,7.3186]
[1769682666035,5.56447011,123.21,123.16,12.48929523]
[1769682669036,8.09838089,123.21,123.14,7.61829209]
[1769682669234,5.56447011,123.2,123.14,7.61829209]
[1769682669734,5.56447011,123.2,123.15,5.08438131]
[1769682673732,12.88117011,123.2,123.15,5.08438131]
[1769682673929,8.09838089,123.19,123.13,323.02516381]
[1769682674238,5.56447011,123.19,123.13,325.55907459]
[1769682675438,12.88187011,123.19,123.13,325.55907459]
[1769682677141,5.56447011,123.18,123.13,318.23857459]
[1769682677640,12.88217011,123.18,123.13,315.70466381]
[1769682677828,15.41608089,123.18,123.13,4.97378603]
[1769682680841,5.56447011,123.17,123.12,2.53391078]
[1769682682440,7.3189,123.16,123.12,2.53391078]
[1769682683541,7.3189,123.16,123.12,2.53617898]
[1769682684544,5.56447011,123.17,123.12,2.53617898]
[1769682687444,5.01240547,123.16,123.11,4.79221021]
[1769682687651,5.01240547,123.16,123.11,7.32838919]
[1769682689346,12.33130547,123.16,123.11,7.32838919]
[1769682690048,5.01240547,123.16,123.11,7.32838919]
[1769682690247,5.01240547,123.16,123.12,2.53617898]
[1769682693152,12.52162875,123.18,123.13,2.53617898]
[1769682693558,5.20392875,123.17,123.13,2.53617898]
[1769682695758,5.20392875,123.17,123.14,2.53617898]
[1769682696261,5.20392875,123.17,123.13,2.53617898]
[1769682696661,5.20392875,123.17,123.12,6.98820165]
[1769682698158,5.20392875,123.17,123.12,4.45202267]
[1769682699564,5.20392875,123.17,123.12,6.98820165]
[1769682701762,5.20392875,123.17,123.12,4.45202267]
[1769682701963,5.20392875,123.17,123.12,6.98820165]
[1769682706575,12.52232875,123.17,123.12,6.98820165]
[1769682706766,5.20392875,123.16,123.11,2.53617898]
[1769682706973,5.20392875,123.16,123.1,6.62667977]
[1769682707168,12.52302875,123.16,123.11,2.53617898]
[1769682707569,12.52302875,123.16,123.11,6.59395007]
[1769682711472,5.20392875,123.15,123.11,4.05777109]
[1769682711673,5.20392875,123.14,123.09,6.46674764]
[1769682712376,5.20392875,123.14,123.1,2.53617898]
[1769682715781,5.20392875,123.14,123.1,6.31644655]
[1769682718383,12.52402875,123.14,123.09,7.3228]
[1769682718577,12.52402875,123.14,123.09,9.85897898]
[1769682719881,4.71060325,123.13,123.08,13.55346505]
[1769682720577,4.71060325,123.12,123.08,7.3235]
[1769682721282,4.71060325,123.12,123.08,9.85967898]
[1769682722586,4.71060325,123.12,123.08,7.3235]
[1769682723588,12.03070325,123.14,123.08,13.41582591]
[1769682723775,4.71060325,123.13,123.08,13.41582591]
[1769682725890,12.03120325,123.13,123.08,6.09232591]
[1769682731190,12.03050325,123.15,123.09,5.88799009]
[1769682731394,12.03050325,123.15,123.1,5.88799009]
[1769682731589,4.71060325,123.15,123.13,2.53617898]
[1769682731895,4.71060325,123.15,123.12,2.53617898]
[1769682732284,4.71060325,123.15,123.11,2.53617898]
[1769682732485,4.71060325,123.15,123.1,5.88799009]
[1769682734391,12.03010325,123.15,123.1,5.88799009]
[1769682739698,4.71060325,123.15,123.1,13.21029009]
[1769682740493,4.71060325,123.15,123.1,7.3223]
[1769682741396,4.71060325,123.15,123.1,9.85847898]
[1769682743194,4.71060325,123.15,123.1,12.93710482]
[1769682743495,4.71060325,123.15,123.11,9.85797898]
[1769682744100,4.71060325,123.15,123.11,2.53617898]
[1769682745494,11.40202257,123.17,123.11,5.55146219]
[1769682745698,11.40202257,123.17,123.12,2.53619684]
[1769682746396,4.08372257,123.16,123.12,2.53619684]
[1769682759102,4.07220561,123.18,123.15,2.53619684]
[1769682759304,4.07220561,123.18,123.14,2.53619684]
[1769682760011,4.07220561,123.17,123.13,5.26860955]
[1769682772415,7.3177,123.18,123.14,2.53619684]
[1769682772610,11.38990561,123.18,123.14,2.53619684]
[1769682775914,11.38990561,123.18,123.13,5.26860955]
[1769682780724,11.38990561,123.18,123.14,2.53619684]
[1769682782828,11.38990561,123.18,123.13,5.26860955]
[1769682790641,11.38990561,123.18,123.13,2.73241271]
[1769682792842,11.38990561,123.18,123.13,5.26860955]
[1769682795245,11.38990561,123.18,123.13,2.73241271]
[1769682798948,11.38990561,123.18,123.13,5.26860955]
[1769682805556,11.38990561,123.18,123.13,5.26760323]
[1769682807460,11.18879797,123.2,123.16,2.53519052]
[1769682809254,3.87189797,123.2,123.16,2.53519052]
[1769682809457,3.87189797,123.22,123.18,2.53519052]
[1769682810361,3.87189797,123.21,123.17,2.53519052]
[1769682810754,3.87189797,123.21,123.18,2.53519052]
[1769682812862,3.87189797,123.21,123.19,2.53519052]
[1769682815760,259.48757286,123.29,123.2,4.52822819]
[1769682815967,2.53519052,123.26,123.19,3.59886236]
[1769682816266,2.53519052,123.25,123.19,3.59886236]
[1769682816467,2.53519052,123.23,123.17,3.59886236]
[1769682817464,2.53519052,123.23,123.18,10.91656236]
[1769682818160,6.17434302,123.23,123.18,10.91656236]
[1769682818470,6.17434302,123.22,123.17,7.3182]
[1769682819568,2.53519052,123.21,123.17,7.3182]
[1769682819768,2.53519052,123.2,123.17,7.3182]
[1769682822667,2.53519052,123.18,123.14,3.59886236]
[1769682822964,2.53519052,123.16,123.12,3.59886236]
[1769682823366,2.53519052,123.16,123.13,7.3201]
[1769682823966,2.53519052,123.15,123.13,7.3201]
[1769682825270,2.53519052,123.16,123.13,10.91896236]
[1769682826372,2.53519052,123.16,123.13,3.59886236]
[1769682826565,2.53519052,123.17,123.13,3.59886236]
[1769682839275,6.39498679,123.17,123.13,3.59886236]
[1769682839576,2.53519052,123.16,123.12,7.3212]
[1769682840181,2.53519052,123.16,123.12,11.02248257]
[1769682841780,6.39498679,123.17,123.12,11.02248257]
[1769682845393,3.85979627,123.17,123.12,11.02248257]
[1769682845594,6.39498679,123.17,123.12,11.02248257]
[1769682845793,3.85979627,123.17,123.12,11.02248257]
[1769682845993,6.39498679,123.17,123.12,11.02248257]
[1769682855894,2.53519052,123.16,123.12,11.02248257]
[1769682856494,6.39498679,123.17,123.12,11.02248257]
[1769682867607,3.85979627,123.17,123.12,11.02248257]
[1769682868307,3.85979627,123.17,123.13,7.3206]
[1769682872308,6.39580364,123.17,123.13,7.3206]
[1769682875412,3.85979627,123.17,123.13,10.93142226]
[1769682876012,9.85380737,123.18,123.13,10.93142226]
[1769682876610,13.61683567,123.18,123.13,10.93142226]
[1769682878911,13.61603567,123.2,123.14,10.93082226]
[1769682879111,13.61603567,123.2,123.14,13.46682963]
[1769682879608,13.61603567,123.2,123.14,10.93082226]
[1769682883012,13.61603567,123.2,123.15,10.93012226]
[1769682884618,2.53600737,123.19,123.15,10.93012226]
[1769682900523,2.53600737,123.18,123.15,10.93012226]
[1769682902536,6.17563727,123.19,123.15,10.93012226]
[1769682917348,3.6396299,123.19,123.15,10.93012226]
[1769682918250,9.85300737,123.2,123.16,3.41655363]
[1769682922047,2.53600737,123.2,123.16,3.41655363]
[1769682922253,10.9555299,123.21,123.16,3.41655363]
[1769682922747,13.49153727,123.21,123.16,3.41655363]
[1769682923746,13.49153727,123.21,123.15,7.3193]
[1769682923747,13.77761013,123.23,123.17,3.41655363]
[1769682923939,6.17563727,123.23,123.17,3.41655363]
[1769682924752,2.53600737,123.22,123.17,3.41655363]
[1769682925355,2.53600737,123.22,123.17,10.73475363]
[1769682926552,13.49053727,123.23,123.17,10.73475363]
[1769682928154,13.49053727,123.23,123.18,3.39609042]
[1769682929655,13.48830755,123.23,123.18,3.39609042]
[1769682933549,2.53377765,123.22,123.18,3.39609042]
[1769682937164,13.48830755,123.23,123.18,3.39609042]
[1769682941667,3.6396299,123.23,123.18,2.53377765]
[1769682941874,7.3142,123.24,123.19,3.43812932]
[1769682942569,9.84797765,123.24,123.19,3.43812932]
[1769682946574,13.32247487,123.24,123.19,3.43812932]
[1769682948674,2.53377765,123.23,123.19,3.43812932]
[1769682954777,13.32247487,123.24,123.19,3.43812932]
[1769682956774,2.53377765,123.23,123.19,3.43812932]
[1769682957781,13.32247487,123.24,123.19,3.43812932]
[1769682960682,2.53377765,123.23,123.19,3.43812932]
[1769682960874,6.10187815,123.23,123.18,7.3177]
[1769682961276,6.10187815,123.22,123.18,7.3177]
[1769682962582,3.5681005,123.22,123.18,7.3177]
[1769682963990,6.10187815,123.22,123.18,10.91415005]
[1769682966892,6.10187815,123.22,123.18,3.59645005]
[1769682967091,2.53377765,123.21,123.18,3.59645005]
[1769682972106,6.10187815,123.22,123.18,3.59645005]
[1769682973205,6.10187815,123.22,123.18,10.91395005]
[1769682985915,3.5681005,123.22,123.18,10.91395005]
[1769682995424,3.25833534,123.24,123.19,3.46681459]
[1769682995628,2.53354686,123.23,123.19,3.46681459]
[1769682996313,5.7918822,123.23,123.19,3.46681459]
[1769682996531,5.7918822,123.23,123.19,10.78381459]
[1769682999326,2.53354686,123.22,123.19,10.78381459]
[1769682999731,5.7918822,123.23,123.19,10.78381459]
[1769683001327,5.7918822,123.25,123.2,10.78321459]
[1769683003224,2.53354686,123.24,123.2,10.78321459]
[1769683004027,2.53354686,123.24,123.2,3.46681459]
[1769683005731,2.53354686,123.23,123.2,3.46681459]
[1769683006533,2.53354686,123.23,123.19,7.317]
[1769683008333,2.53354686,123.22,123.19,7.317]
[1769683008830,2.53354686,123.23,123.18,18.38692345]
[1769683013336,2.53354686,123.23,123.19,3.46681459]
[1769683020046,10.57263534,123.24,123.19,3.46681459]
[1769683020245,2.53354686,123.23,123.19,3.46681459]
[1769683025556,13.1061822,123.24,123.19,3.46681459]
[1769683031063,3.47366042,123.22,123.18,7.3176]
[1769683036965,3.47366042,123.22,123.18,10.66437733]
[1769683038875,2.53354686,123.23,123.18,10.66437733]
[1769683040468,13.32150728,123.24,123.18,10.66437733]
[1769683051575,13.32137904,123.24,123.18,10.66437733]
[1769683052175,13.32137904,123.24,123.18,18.26688619]
[1769683055576,13.32137904,123.24,123.18,18.2788881]
[1769683055770,2.53341862,123.23,123.18,18.2788881]
[1769683056576,6.04487128,123.23,123.18,18.2788881]
[1769683058776,3.51145266,123.23,123.18,18.2788881]
[1769683072789,9.84771862,123.24,123.19,3.38257799]
[1769683075885,13.39411103,123.24,123.19,3.38257799]
[1769683086101,3.54639241,123.23,123.18,14.93211077]
[1769683086403,6.07981103,123.22,123.18,7.3176]
[1769683089705,6.07981103,123.22,123.18,10.80737693]
[1769683091502,6.07981103,123.22,123.17,7.61451077]
[1769683091811,7.61787831,123.25,123.15,11.1042877]
[1769683091812,2.53341862,123.19,123.15,11.1042877]
[1769683093312,2.53341862,123.19,123.15,18.4236877]
[1769683093804,3.54639241,123.22,123.16,3.48977693]
[1769683094003,2.53341862,123.2,123.16,11.1042877]
[1769683095310,2.53341862,123.2,123.16,18.4230877]
[1769683098615,2.53341862,123.21,123.16,18.4230877]
[1769683101317,2.53341862,123.21,123.17,7.3182]
[1769683109625,2.53341862,123.21,123.17,10.62538598]
[1769683111625,2.53458177,123.21,123.17,10.62538598]
[1769683114124,6.08097418,123.22,123.17,10.62538598]
[1769683114325,2.53458177,123.21,123.17,10.62538598]
[1769683114627,3.54639241,123.22,123.17,10.62538598]
[1769683115328,10.86169241,123.22,123.17,10.62538598]
[1769683128943,3.54639241,123.22,123.17,10.62538598]
[1769683132748,5.88521342,123.24,123.18,3.48420947]
[1769683132953,3.35063165,123.24,123.19,6.01879124]
[1769683133349,3.35063165,123.24,123.19,3.48420947]
[1769683133654,3.35063165,123.24,123.19,6.01879124]
[1769683134546,3.35063165,123.24,123.2,7.3163]
[1769683141653,3.35063165,123.24,123.19,6.01879124]
[1769683141654,3.33017993,123.26,123.21,5.93294876]
[1769683141850,3.33017993,123.26,123.21,10.71416699]
[1769683142157,3.33017993,123.26,123.21,3.39836699]
[1769683142455,3.33017993,123.24,123.19,10.71536699]
[1769683142650,3.33017993,123.24,123.19,3.39836699]
[1769683148762,10.64447993,123.24,123.19,3.39836699]
[1769683152765,7.3147,123.23,123.19,3.39836699]
[1769683159572,7.3147,123.23,123.19,5.93294876]
[1769683161976,7.3141,123.24,123.21,2.53458177]
[1769683162169,6.39715724,123.24,123.21,2.53458177]
[1769683163674,9.72733717,123.24,123.21,2.53458177]
[1769683164678,9.72733717,123.24,123.2,5.93294876]
[1769683165977,6.39715724,123.24,123.2,5.93294876]
[1769683166667,6.39715724,123.24,123.21,2.53458177]
[1769683167576,10.82673695,123.25,123.21,2.53458177]
[1769683168771,10.82673695,123.25,123.2,5.93294876]
[1769683169580,10.82673695,123.25,123.2,3.39836699]
[1769683172181,3.51313695,123.25,123.2,10.71486699]
[1769683176986,10.82663695,123.25,123.2,5.93106283]
[1769683177174,3.51313695,123.25,123.21,3.30398331]
[1769683178094,3.51313695,123.25,123.21,5.83667915]
[1769683179590,3.51313695,123.25,123.21,3.30398331]
[1769683182788,7.313,123.26,123.21,5.83667915]
[1769683182979,7.313,123.26,123.22,3.30398331]
[1769683183184,7.313,123.26,123.22,5.83667915]
[1769683184190,7.313,123.26,123.22,3.30398331]
[1769683190193,7.313,123.26,123.22,5.83667915]
[1769683199507,7.313,123.26,123.22,3.30398331]
[1769683201516,10.56104487,123.26,123.22,3.30398331]
[1769683209714,3.24804487,123.26,123.22,3.30398331]
[1769683213304,5.78074071,123.24,123.2,7.58224166]
[1769683213510,5.78074071,123.24,123.18,11.14568508]
[1769683214209,2.53269584,123.23,123.18,11.14568508]
[1769683214406,2.53269584,123.23,123.19,7.317]
[1769683214604,2.53269584,123.21,123.19,7.317]
[1769683216717,2.53269584,123.21,123.18,11.14568508]
[1769683216916,2.53269584,123.19,123.16,3.56344342]
[1769683217922,2.53269584,123.2,123.16,3.56344342]
[1769683218120,2.53269584,123.2,123.16,10.88224342]
[1769683219510,2.53269584,123.21,123.16,10.88224342]
[1769683222326,13.09604071,123.22,123.16,10.88224342]
[1769683224027,2.53269584,123.21,123.16,10.88224342]
[1769683224222,3.24804487,123.22,123.17,3.56344342]
[1769683226928,5.78074071,123.22,123.17,3.56344342]
[1769683231631,2.53269584,123.21,123.17,3.56344342]
[1769683235534,2.53446545,123.21,123.17,3.56344342]
[1769683236137,13.09791032,123.22,123.17,3.56344342]
[1769683237632,3.34164968,123.21,123.17,3.56344342]
[1769683239138,5.87611513,123.21,123.17,3.56344342]
[1769683239338,3.34164968,123.21,123.17,3.56344342]
[1769683239538,5.87611513,123.21,123.17,3.56344342]
[1769683240333,5.87611513,123.21,123.16,7.3188]
[1769683240639,13.19211513,123.21,123.16,7.3188]
[1769683241437,13.19211513,123.21,123.16,10.59563918]
[1769683243133,2.53446545,123.2,123.16,3.27683918]
[1769683243333,5.87611513,123.2,123.16,3.27683918]
[1769683251551,3.34164968,123.2,123.16,3.27683918]
[1769683261147,3.34164968,123.2,123.15,7.3193]
[1769683261352,5.90879849,123.19,123.14,10.59586917]
[1769683262247,3.37433304,123.19,123.14,10.59586917]
[1769683263653,3.37433304,123.19,123.14,13.13033462]
[1769683264453,3.37433304,123.19,123.15,7.3194]
[1769683279063,3.37433304,123.19,123.14,10.59586917]
[1769683283157,3.37433304,123.19,123.14,13.13033462]
[1769683284562,3.37433304,123.19,123.14,10.59586917]
[1769683297572,3.37433304,123.19,123.14,13.13109975]
[1769683297772,3.37433304,123.19,123.14,10.59586917]
[1769683316289,3.37433304,123.19,123.14,18.1931477]
[1769683329206,10.69143304,123.19,123.14,18.1931477]
[1769683329406,10.69143304,123.19,123.14,3.27596917]
[1769683330902,3.53455043,123.17,123.12,18.42077597]
[1769683331098,6.06978101,123.17,123.12,18.42077597]
[1769683331298,3.53455043,123.17,123.12,10.82349744]
[1769683332010,2.53523058,123.16,123.12,3.50239744]
[1769683332210,6.06978101,123.16,123.12,3.50239744]
[1769683332708,3.53455043,123.16,123.12,3.50239744]
[1769683333509,6.06978101,123.16,123.1,342.68207597]
[1769683334409,7.3194,123.15,123.1,342.68207597]
[1769683334707,7.3194,123.15,123.1,18.42207597]
[1769683336409,13.38918101,123.15,123.1,18.42207597]
[1769683336604,6.06978101,123.15,123.1,18.42207597]
[1769683337211,3.53455043,123.15,123.1,18.42207597]
[1769683338011,3.53455043,123.15,123.1,20.95730655]
[1769683338712,3.53455043,123.15,123.1,13.63490655]
[1769683340115,3.53455043,123.15,123.1,11.09967597]
[1769683341215,3.53455043,123.15,123.1,3.50239744]
[1769683343206,3.53455043,123.15,123.1,6.03762802]
[1769683354618,3.53455043,123.15,123.1,13.35982802]
[1769683357617,3.53455043,123.15,123.1,13.36155198]
[1769683360024,3.53455043,123.15,123.1,10.82459744]
[1769683360210,3.53455043,123.15,123.1,13.36155198]
[1769683362720,3.53455043,123.15,123.1,10.82459744]
[1769683368420,10.85405043,123.15,123.1,3.50239744]
[1769683368620,13.39100497,123.15,123.1,3.50239744]
[1769683369032,3.45185637,123.14,123.1,3.50239744]
[1769683369222,10.77205637,123.14,123.08,13.13192693]
[1769683369622,13.30901091,123.14,123.08,13.13192693]
[1769683369824,3.45185637,123.13,123.08,10.59497239]
[1769683370725,3.45185637,123.13,123.08,13.13192693]
[1769683373831,3.45185637,123.13,123.09,2.53695454]
[1769683374734,3.45185637,123.13,123.08,13.13192693]
[1769683376734,3.45185637,123.13,123.09,2.53695454]
[1769683381240,3.45185637,123.13,123.08,13.13192693]
[1769683383246,3.45185637,123.13,123.09,7.3229]
[1769683384645,10.62296319,123.15,123.1,5.90923676]
[1769683384946,3.30336319,123.15,123.11,5.90923676]
[1769683385642,10.62206319,123.17,123.11,5.90923676]
[1769683388749,3.30336319,123.16,123.11,5.90923676]
[1769683389152,3.30336319,123.16,123.12,2.53695454]
[1769683389743,10.62216319,123.16,123.12,2.53695454]
[1769683391243,10.62216319,123.16,123.11,3.37228222]
[1769683391444,10.62216319,123.16,123.12,2.53695454]
[1769683392745,10.62216319,123.16,123.11,5.90923676]
[1769683392945,3.30336319,123.15,123.11,5.90923676]
[1769683393149,3.30336319,123.14,123.08,9.86045454]
[1769683393347,3.30336319,123.14,123.08,2.53695454]
[1769683393746,3.30336319,123.13,123.08,2.53695454]
[1769683393948,3.30336319,123.13,123.09,2.53695454]
[1769683394151,3.30336319,123.13,123.1,2.53695454]
[1769683394655,3.30336319,123.13,123.09,3.37228222]
[1769683398658,3.30336319,123.14,123.09,3.37228222]
[1769683401457,5.84031773,123.14,123.09,3.37228222]
[1769683402457,3.30336319,123.14,123.09,3.37228222]
[1769683406251,3.30336319,123.14,123.09,5.90923676]
[1769683406457,3.30336319,123.14,123.09,3.37228222]
[1769683415667,3.22718649,123.13,123.08,2.53695454]
[1769683415857,3.22718649,123.13,123.07,337.94240293]
[1769683416060,3.22718649,123.13,123.07,330.34889573]
[1769683416668,5.76414103,123.13,123.08,3.53194119]
[1769683417462,13.08484103,123.13,123.08,3.53194119]
[1769683417664,13.08602553,123.13,123.08,3.53194119]
[1769683419264,10.54788649,123.13,123.08,3.53194119]
[1769683434672,13.08602553,123.13,123.08,3.53194119]
[1769683438478,10.54788649,123.13,123.08,3.53194119]
[1769683441578,3.22718649,123.13,123.08,13.39348023]
[1769683441778,3.22718649,123.13,123.08,20.98698743]
[1769683443579,3.22718649,123.13,123.09,2.53813904]
[1769683443978,3.22718649,123.13,123.09,9.86103904]
[1769683444576,3.22718649,123.13,123.09,13.27293001]
[1769683445781,3.22718649,123.13,123.09,10.73479097]
[1769683454288,10.6814721,123.15,123.09,10.73479097]
[1769683454480,10.6814721,123.15,123.09,13.27293001]
[1769683454885,10.6814721,123.15,123.09,20.86643721]
[1769683456288,13.21961114,123.15,123.09,18.32829817]
[1769683457890,13.21961114,123.15,123.09,10.73479097]
[1769683458790,3.3619721,123.14,123.09,10.73479097]
[1769683474907,3.3619721,123.14,123.1,3.45923704]
[1769683478514,9.85763904,123.15,123.1,3.45923704]
[1769683479205,13.37560124,123.15,123.1,3.45923704]
[1769683479613,13.37477245,123.15,123.1,3.45923704]
[1769683479910,10.8374622,123.15,123.1,3.45923704]
[1769683480508,2.53731025,123.16,123.11,3.45923704]
[1769683480509,7.319,123.16,123.11,3.45923704]
[1769683480708,7.319,123.16,123.11,5.99654729]
[1769683483611,13.37477245,123.15,123.09,20.91295449]
[1769683484014,13.37477245,123.15,123.1,3.45923704]
[1769683488922,10.8374622,123.15,123.1,3.45923704]
[1769683489617,10.8374622,123.15,123.1,5.99654729]
[1769683490321,10.8374622,123.15,123.1,13.59005449]
[1769683490722,7.3189,123.16,123.11,3.45923704]
[1769683491523,10.8368622,123.16,123.11,3.45923704]
[1769683492320,10.8368622,123.16,123.11,10.78093704]
[1769683492820,13.37417245,123.16,123.11,10.78093704]
[1769683493916,6.05527245,123.16,123.11,10.78093704]
[1769683498724,6.05527245,123.16,123.11,3.45923704]
[1769683503526,13.37437245,123.16,123.11,3.45923704]
[1769683504331,7.3196,123.15,123.11,3.45923704]
[1769683504925,10.70530856,123.15,123.11,3.45923704]
[1769683506934,7.3201,123.14,123.09,11.10443205]
[1769683509042,7.3201,123.14,123.1,3.51092485]
[1769683511337,9.85741025,123.14,123.1,3.51092485]
[1769683513238,13.24311881,123.14,123.1,3.51092485]
[1769683514240,10.70580856,123.14,123.1,3.51092485]
[1769683516739,3.38570856,123.14,123.1,3.51092485]
[1769683521039,13.24321881,123.14,123.09,3.51092485]
[1769683526046,2.53731025,123.13,123.09,3.51092485]
[1769683532551,13.24321881,123.14,123.09,10.83392485]
[1769683539557,13.24352422,123.14,123.09,10.83392485]
[1769683540357,3.38570856,123.14,123.09,10.83392485]
[1769683540861,3.38570856,123.14,123.09,18.42743205]
[1769683541662,3.38570856,123.14,123.09,20.96504771]
[1769683560586,9.85751566,123.15,123.1,3.33421053]
[1769683561088,7.3199,123.15,123.1,3.33421053]
[1769683565886,10.85868351,123.15,123.1,3.33421053]
[1769683578406,13.39629917,123.15,123.1,3.33421053]
[1769683579706,10.85868351,123.15,123.1,3.33421053]
[1769683583312,3.53878351,123.15,123.11,3.33421053]
[1769683583503,7.3188,123.17,123.11,3.33421053]
[1769683583504,13.39519917,123.17,123.11,10.92771773]
[1769683583704,3.53878351,123.16,123.11,5.87182619]
[1769683584006,13.39539917,123.16,123.11,3.33421053]
[1769683585110,3.36405589,123.14,123.1,7.5935072]
[1769683585313,3.36405589,123.14,123.09,20.69787102]
[1769683587617,3.36405589,123.14,123.09,18.16025536]
[1769683595721,5.90167155,123.14,123.09,18.16025536]
[1769683595918,5.90167155,123.14,123.09,10.83735536]
[1769683598123,13.22197155,123.14,123.09,10.83735536]
[1769683601712,13.22181811,123.14,123.09,10.83735536]
[1769683604625,10.68435589,123.14,123.09,10.83735536]
[1769683607327,10.68435589,123.14,123.09,18.16035536]
[1769683609629,3.36405589,123.14,123.09,18.16035536]
[1769683620233,7.3196,123.15,123.1,3.40736692]
[1769683621032,10.81223417,123.15,123.1,3.40736692]
[1769683622628,13.34969639,123.15,123.1,3.40736692]
[1769683622828,10.81263417,123.14,123.1,3.40736692]
[1769683626734,3.49263417,123.14,123.1,3.40736692]
[1769683640443,3.49263417,123.14,123.1,10.72956692]
[1769683659351,6.03009639,123.14,123.09,14.9165072]
[1769683659850,6.03009639,123.14,123.09,18.275098]
[1769683661052,3.49263417,123.14,123.09,18.275098]
[1769683661948,6.00867597,123.13,123.08,14.9170072]
[1769683662152,2.53738737,123.12,123.08,7.3235]
[1769683663257,2.53738737,123.12,123.08,10.6820908]
[1769683664754,6.00867597,123.12,123.08,7.3235]
[1769683668950,6.00867597,123.12,123.07,18.276298]
[1769683677564,6.00867597,123.12,123.08,7.3236]
[1769683679465,3.4712886,123.12,123.08,7.3236]
[1769683682967,3.4712886,123.12,123.08,10.81891078]
[1769683686677,2.53738737,123.13,123.08,10.81891078]
[1769683686875,13.32428656,123.14,123.08,10.81891078]
[1769683688672,7.3202,123.14,123.09,3.49531078]
[1769683690477,7.3202,123.14,123.09,6.03269815]
[1769683691581,10.78619919,123.15,123.1,6.03269815]
[1769683694281,10.78619919,123.15,123.1,3.49531078]
[1769683694781,2.53738737,123.14,123.1,3.49531078]
[1769683697484,2.53738737,123.13,123.08,18.42005613]
[1769683698484,2.53738737,123.13,123.09,7.323]
[1769683704695,2.53738737,123.13,123.08,18.42015613]
[1769683705893,2.53738737,123.13,123.08,18.42204774]
[1769683706496,2.53738737,123.13,123.09,3.4483966]
[1769683706896,7.3195,123.15,123.09,3.4483966]
[1769683706897,9.85688737,123.15,123.09,3.4483966]
[1769683707896,9.85688737,123.15,123.1,3.4483966]
[1769683709497,13.26784283,123.15,123.1,3.4483966]
[1769683712902,2.53738737,123.14,123.1,3.4483966]
[1769683721611,2.53755509,123.14,123.1,3.4483966]
[1769683723012,10.73045546,123.15,123.1,3.4483966]
[1769683723215,13.26801055,123.15,123.1,3.4483966]
[1769683725215,2.53755509,123.14,123.1,3.4483966]
[1769683732212,9.85765509,123.14,123.1,3.4483966]
[1769683732408,2.53755509,123.13,123.08,10.96795329]
[1769683732610,2.53755509,123.12,123.08,10.96795329]
[1769683735211,2.53755509,123.11,123.08,10.96795329]
[1769683738621,10.64953219,123.12,123.08,10.96795329]
[1769683738822,13.18708728,123.12,123.08,10.96795329]
[1769683742829,13.18708728,123.12,123.08,3.36481633]